fUSD/lending_fUSD_20240628
["ID","MTS","AMOUNT","RATE_DAILY","PERIOD"]
[330517663,1719555377978,150.0,0.00011199,2]
[330517664,1719555377999,186.96963135,0.00011199,2]
[330517665,1719555378021,150.0,0.00011199,2]
[330517666,1719555378048,139.3071738,0.00011199,2]
[330517667,1719555452722,150.0,0.00011199,2]
[330517668,1719555452744,103.90432169,0.00011199,2]
[330517672,1719555648416,155.46369995,0.00011199,2]
[330517673,1719555720201,406.81151951,0.00010853,2]
[330517674,1719555720228,317.41848049,0.00010853,2]
[330517675,1719555769732,150.0,0.00011199,2]
[330517676,1719555769753,150.0,0.00011199,2]
[330517677,1719555769774,150.0,0.00011199,2]
[330517678,1719555769800,140.07056313,0.00011199,2]
[330517679,1719555848158,150.0,0.00011199,2]
[330517680,1719555848185,150.0,0.00011199,2]
[330517681,1719555848207,150.0,0.00011199,2]
[330517682,1719555848229,80.68926008,0.00011199,2]
[330517683,1719555850140,69.31073992,0.00011199,2]
[330517684,1719555850165,150.0,0.00011199,2]
[330517685,1719555850192,150.0,0.00011199,2]
[330517686,1719555850215,150.0,0.00011199,2]
[330517687,1719555850238,150.0,0.00011199,2]
[330517688,1719555850260,150.0,0.00011199,2]
[330517689,1719555850284,150.0,0.00011199,2]
[330517690,1719555850306,150.0,0.00011199,2]
[330517691,1719555850328,150.0,0.00011199,2]
[330517692,1719555850350,150.0,0.00011199,2]
[330517693,1719555850376,150.0,0.00011199,2]
[330517694,1719555850398,150.0,0.00011199,2]
[330517695,1719555850420,150.0,0.00011199,2]
[330517696,1719555850442,150.0,0.00011199,2]
[330517697,1719555850465,150.0,0.00011199,2]
[330517698,1719555850486,150.0,0.00011199,2]
[330517699,1719555850509,150.0,0.00011199,2]
[330517700,1719555850530,169.05548383,0.00011199,2]
[330517701,1719555850552,150.0,0.00011199,2]
[330517702,1719555850575,150.0,0.00011199,2]
[330517703,1719555850598,2657.64241734,0.00011199,2]
[330517704,1719555910131,368.71565506,0.00011199,2]
[330517705,1719555932819,4454.52980697,0.00011199,2]
[330517706,1719555957174,556.72469797,0.00011199,2]
[330517709,1719556054269,589.41394211,0.00011199,2]
[330517712,1719556132235,1055.55500006,0.00011199,2]
[330517713,1719556132262,208.44432454,0.00011199,2]
[330517717,1719556187151,209.96997035,0.00011199,2]
[330517725,1719556232188,-222.38300686,0.00012302,2]
[330517726,1719556232199,-368.35411952,0.00012314,2]
[330517727,1719556232208,-250.0,0.00012459,2]
[330517728,1719556232218,-300.0,0.00012522,2]
[330517729,1719556232227,-23900.0,0.00012523,2]
[330517730,1719556232236,-168.6,0.00012581,2]
[330517731,1719556232247,-165.13,0.00012587,2]
[330517732,1719556232256,-1965.3,0.00012643,2]
[330517733,1719556232266,-500.0,0.00012771,2]
[330517734,1719556232276,-299.99,0.00012771,2]
[330517735,1719556232285,-150.0,0.00012795,2]
[330517736,1719556232299,-250.0,0.00012796,2]
[330517737,1719556232310,-425.78,0.00013096,2]
[330517738,1719556232319,-724.23,0.00013117,2]
[330517739,1719556232330,-500.0,0.00013126,2]
[330517740,1719556232340,-1000.0,0.00013138,2]
[330517741,1719556232349,-418.71,0.00013233,2]
[330517742,1719556232359,-853.46,0.00013233,2]
[330517743,1719556232370,-418.71,0.00013233,2]
[330517744,1719556232380,-853.46,0.00013233,2]
[330517745,1719556232389,-853.46,0.00013233,2]
[330517746,1719556232400,-418.71,0.00013233,2]
[330517747,1719556232409,-853.46,0.00013233,2]
[330517748,1719556232419,-1394.18,0.00013441,2]
[330517749,1719556232428,-1270.37297567,0.00013472,2]
[330517750,1719556232438,-853.46,0.00013541,2]
[330517751,1719556232447,-284.84716055,0.00013574,2]
[330517752,1719556232457,-24007.77034626,0.00013689,2]
[330517753,1719556232466,-200.0,0.00013699,2]
[330517754,1719556232475,-200.0,0.00013699,2]
[330517755,1719556232485,-2640.76,0.00013699,2]
[330517756,1719556232495,-297.4,0.00013699,2]
[330517757,1719556232504,-167.86,0.00013699,2]
[330517758,1719556232515,-617.21,0.00013699,2]
[330517759,1719556232525,-1133.92751376,0.00013736,2]
[330517760,1719556232535,-420.0,0.00013739,2]
[330517761,1719556232544,-1000.0,0.00013759,2]
[330517762,1719556232553,-301.54074379,0.00013761,2]
[330517763,1719556232563,-348.00411634,0.00013775,2]
[330517764,1719556232572,-1705.64,0.000138,2]
[330517765,1719556232581,-3873.9285454,0.000138,2]
[330517766,1719556232591,-17168.22827573,0.000138,2]
[330517767,1719556232600,-800.0,0.00013863,2]
[330517768,1719556232609,-800.0,0.00013863,2]
[330517769,1719556232619,-800.0,0.00013863,2]
[330517770,1719556232628,-800.0,0.00013863,2]
[330517771,1719556232638,-172.94,0.00013898,2]
[330517772,1719556232647,-624.28077392,0.00013899,2]
[330517773,1719556232657,-155.32869586,0.00013899,2]
[330517774,1719556232666,-199.93455324,0.00013899,2]
[330517775,1719556232676,-302.8701,0.000139,2]
[330517776,1719556232686,-41869.6957,0.000139,2]
[330517777,1719556232696,-156.274,0.000139,2]
[330517778,1719556232706,-437.53267507,0.000139,2]
[330517779,1719556232749,-1657.86901105,0.000139,2]
[330517780,1719556232761,-13800.12951388,0.000139,2]
[330517781,1719556232770,-1951.9501,0.000139,2]
[330517782,1719556232782,-1797.8025,0.000139,2]
[330517783,1719556232791,-25954.86074357,0.000139,2]
[330517784,1719556232803,-1567.090525,0.000139,2]
[330517785,1719556232858,-179.61027696,0.00012102,2]
[330517786,1719556232867,-1120.51660746,0.000139,2]
[330517787,1719556232879,-1094.5119612,0.000139,2]
[330517788,1719556232890,-4044.72301169,0.000139,2]
[330517802,1719556238848,-1891.11133575,0.00013889,2]
[330517804,1719556238870,-416.18612044,0.0001389,2]
[330517806,1719556238893,-4741.12302985,0.000139,2]
[330517809,1719556238918,-5848.53407017,0.000139,2]
[330517825,1719556239257,-6250.51679469,0.000139,2]
[330517827,1719556239283,-1603.48332572,0.000139,2]
[330517829,1719556239309,-10208.64443999,0.000139,2]
[330517831,1719556239335,-37565.99549066,0.000139,2]
[330517834,1719556239359,-500.0,0.000139,2]
[330517836,1719556239381,-7500.0,0.000139,2]
[330517838,1719556239403,-175.84386722,0.000139,2]
[330517840,1719556239426,-6317.57395497,0.000139,2]
[330517842,1719556239448,-193.24246027,0.000139,2]
[330517844,1719556239471,-2587.06249854,0.000139,2]
[330517846,1719556239502,-317.41924941,0.000139,2]
[330517848,1719556239526,-385.87262968,0.00013912,2]
[330517850,1719556239538,-526.39,0.00013918,2]
[330517852,1719556239549,-175.62575415,0.00013955,2]
[330517854,1719556239560,-800.0,0.00013973,2]
[330517856,1719556239571,-800.0,0.00013973,2]
[330517858,1719556239582,-800.0,0.00013973,2]
[330517860,1719556239593,-6888.3628026,0.00013989,2]
[330517862,1719556239603,-545.86162919,0.00013989,2]
[330517864,1719556239614,-1920.848966,0.00013989,2]
[330517866,1719556239625,-33679.8422291,0.00013989,2]
[330517868,1719556239637,-346.07679139,0.00013989,2]
[330517870,1719556239647,-235.17702148,0.00013989,2]
[330517872,1719556239658,-218.03958267,0.00013989,2]
[330517874,1719556239668,-311.15090226,0.00013989,2]
[330517876,1719556239678,-155.61182952,0.00013989,2]
[330517878,1719556239688,-155.56175436,0.00013989,2]
[330517880,1719556239698,-202.53959621,0.0001399,2]
[330517882,1719556239708,-202.53959621,0.0001399,2]
[330517884,1719556239718,-169.26966654,0.00013999,2]
[330517886,1719556239729,-152.89860748,0.00013999,2]
[330517889,1719556239738,-155.0,0.00013999,2]
[330517891,1719556239749,-217.75356956,0.00013999,2]
[330517893,1719556239759,-155.0,0.00013999,2]
[330517895,1719556239769,-947.0,0.00014,2]
[330517897,1719556239779,-130017.09866497,0.00014,2]
[330518020,1719556241115,-702.12138426,0.00014,2]
[330518027,1719556241174,-4869.33706017,0.00014,2]
[330518029,1719556241186,-408.7826365,0.00014,2]
[330518031,1719556241197,-464066.78141828,0.00014,2]
[330518088,1719556241740,-818.75208748,0.00013989,2]
[330518090,1719556241751,-337.52317038,0.00013989,2]
[330518093,1719556241763,-723.58886561,0.00013989,2]
[330518096,1719556241790,-298.31412405,0.00013989,2]
[330518099,1719556241802,-895.86543096,0.00013989,2]
[330518101,1719556241814,-861.84195048,0.00013989,2]
[330518114,1719556243264,-3167.198499,0.00013989,2]
[330518115,1719556243276,-30014.60587204,0.00013989,2]
[330518116,1719556243287,-508252.10564693,0.00014,2]
[330518118,1719556243302,-470.62190427,0.00014,2]
[330518121,1719556243624,-391.189999,0.00014,2]
[330518122,1719556243636,-1362.0543619,0.00014,2]
[330518123,1719556243647,-3792.97760677,0.00014,2]
[330518129,1719556246374,-711.67813268,0.000139,2]
[330518131,1719556246384,-2373.06604864,0.00014,2]
[330518132,1719556246844,-1464.12137749,0.00014,2]
[330518133,1719556246856,-4571.81618193,0.00014,2]
[330518134,1719556246867,-1018.3,0.00014,2]
[330518135,1719556246939,-19488.64117172,0.00014,2]
[330518143,1719556449205,2600.83838776,0.00011197,2]
[330518144,1719556453272,791.99564126,0.00011,2]
[330518145,1719556470757,1264.71015021,6.94e-05,2]
[330518146,1719556516107,523.96690629,8.412e-05,2]
[330518147,1719556551932,529.32981125,0.00010196,2]
[330518148,1719556554933,500.0,8.412e-05,2]
[330518149,1719556591901,450.32528097,0.00010196,2]
[330518153,1719556802644,708.64,0.00010787,2]
[330518155,1719556931096,341.19313146,0.00011199,2]
[330518156,1719556963023,1000.0,0.00011199,2]
[330518158,1719557005530,-1622.375187,0.00012214,2]
[330518159,1719557005557,-337.09590134,0.00012273,2]
[330518160,1719557005581,-150.0,0.0001265,2]
[330518161,1719557005606,-2785.7,0.00012655,2]
[330518162,1719557005631,-200.0,0.00012655,2]
[330518163,1719557005656,-214.03,0.00012667,2]
[330518164,1719557005681,-169.03,0.00012684,2]
[330518165,1719557005704,-250.0,0.00012699,2]
[330518166,1719557006468,1246.76891166,0.00012724,2]
[330518184,1719557337408,673.2,0.00010778,2]
[330518218,1719557433448,-155.74076896,0.00012273,2]
[330518219,1719557433458,-173.76628846,0.00012273,2]
[330518220,1719557433467,-451.52553157,0.00012413,2]
[330518221,1719557433553,-548.47446843,0.00012413,2]
[330518222,1719557433562,-250.0,0.00012427,2]
[330518223,1719557433572,-443.08,0.00012659,2]
[330518224,1719557433581,-500.0,0.00012669,2]
[330518225,1719557433590,-250.0,0.00012679,2]
[330518226,1719557433599,-823.86108834,0.00012724,2]
[330518227,1719557433608,-152.63,0.00012734,2]
[330518228,1719557433618,-152.63,0.00012769,2]
[330518229,1719557433627,-152.63,0.00012804,2]
[330518230,1719557433636,-19.19179452,0.00012804,2]
[330518231,1719557433648,-131.79820548,0.00012804,2]
[330518232,1719557433658,-152.63,0.00012839,2]
[330518233,1719557433667,-152.63,0.00012874,2]
[330518234,1719557433677,-152.63,0.00012909,2]
[330518235,1719557433686,-152.63,0.00012944,2]
[330518236,1719557433701,-152.63,0.00012979,2]
[330518237,1719557433711,-152.63,0.00013014,2]
[330518238,1719557433720,-673.2,0.00013042,2]
[330518239,1719557433730,-152.63,0.00013049,2]
[330518240,1719557433741,-152.63,0.00013084,2]
[330518241,1719557433752,-152.63,0.00013119,2]
[330518242,1719557433764,-152.63,0.00013154,2]
[330518243,1719557433776,-178.69,0.00013186,2]
[330518244,1719557433788,-152.63,0.00013189,2]
[330518245,1719557433799,-150.0,0.00013205,2]
[330518246,1719557433809,-300.0,0.00013223,2]
[330518247,1719557433819,-152.63,0.00013223,2]
[330518248,1719557433834,-152.63,0.00013258,2]
[330518249,1719557433843,-308.6,0.00013269,2]
[330518250,1719557433853,-1338.35,0.00013269,2]
[330518251,1719557433862,-499.99,0.00013269,2]
[330518252,1719557433872,-152.63,0.00013293,2]
[330518253,1719557433882,-150.0,0.00013304,2]
[330518254,1719557433891,-1798.48,0.00013305,2]
[330518255,1719557433900,-152.63,0.00013328,2]
[330518256,1719557433910,-152.63,0.00013363,2]
[330518257,1719557433919,-418.71,0.00013397,2]
[330518258,1719557433928,-152.63,0.00013398,2]
[330518259,1719557433940,-528.03,0.000134,2]
[330518260,1719557433950,-418.71,0.000134,2]
[330518261,1719557433960,-418.71,0.000134,2]
[330518262,1719557433969,-418.71,0.000134,2]
[330518263,1719557433978,-551.83,0.000134,2]
[330518264,1719557433987,-841.89,0.000134,2]
[330518265,1719557433997,-1561.66,0.000135,2]
[330518266,1719557434007,-418.71,0.00013641,2]
[330518267,1719557434017,-800.0,0.00013671,2]
[330518268,1719557434026,-800.0,0.00013671,2]
[330518269,1719557434036,-47186.766,0.00013699,2]
[330518270,1719557434046,-301.54,0.00013699,2]
[330518271,1719557434058,-441.44,0.00013699,2]
[330518272,1719557434070,-200.0,0.00013699,2]
[330518273,1719557434079,-2751.0,0.00013699,2]
[330518274,1719557434087,-333.73,0.00013699,2]
[330518275,1719557434096,-2324.28,0.00013699,2]
[330518276,1719557434106,-1696.0,0.000137,2]
[330518277,1719557434116,-1024.0,0.000137,2]
[330518278,1719557434126,-1012.0,0.000137,2]
[330518279,1719557434135,-800.0,0.00013753,2]
[330518280,1719557434144,-1096.5530102,0.00013759,2]
[330518281,1719557434154,-15451.40544822,0.0001379,2]
[330518282,1719557434164,-39433.4652,0.000138,2]
[330518283,1719557434175,-11247.7415,0.000138,2]
[330518284,1719557434186,-491.6135,0.000138,2]
[330518285,1719557434196,-528.03,0.000138,2]
[330518286,1719557434205,-3677.13293149,0.000138,2]
[330518287,1719557434215,-258.6051,0.000138,2]
[330518288,1719557434224,-800.0,0.00013808,2]
[330518289,1719557434234,-800.0,0.00013836,2]
[330518290,1719557434244,-800.0,0.00013863,2]
[330518291,1719557434254,-800.0,0.00013863,2]
[330518292,1719557434263,-200.0,0.00013888,2]
[330518293,1719557434272,-219.86,0.0001389,3]
[330518294,1719557434281,-417.83,0.000139,2]
[330518295,1719557434290,-528.03,0.000139,2]
[330518296,1719557434299,-154.49,0.000139,2]
[330518297,1719557434309,-708.36,0.000139,2]
[330518298,1719557434318,-2245.32077655,0.000139,2]
[330518299,1719557434327,-2500.0,0.000139,2]
[330518300,1719557434336,-175.84386721,0.000139,2]
[330518301,1719557434346,-7500.0,0.000139,2]
[330518302,1719557434355,-5791.10945875,0.000139,2]
[330518303,1719557434366,-1724.70833236,0.000139,2]
[330518304,1719557434375,-672.47260162,0.000139,2]
[330518305,1719557434384,-175.20791801,0.000139,2]
[330518306,1719557434393,-316.16026562,0.000139,2]
[330518307,1719557434402,-2684.16749386,0.000139,2]
[330518308,1719557434412,-1000.0,0.00013965,2]
[330518309,1719557434421,-155.16560532,0.00013989,2]
[330518310,1719557434431,-1998.3232076,0.0001399,2]
[330518311,1719557434441,-3713.5080313,0.0001399,2]
[330518312,1719557434450,-1022.1428962,0.0001399,2]
[330518313,1719557434459,-33439.9919852,0.0001399,2]
[330518314,1719557434469,-1294.5805728,0.0001399,2]
[330518315,1719557434481,-953.0,0.00014,2]
[330518316,1719557434491,-349590.89460335,0.00014,2]
[330518317,1719557434503,-2820.0,0.00014,2]
[330518318,1719557434557,-47324.08572949,0.00014,2]
[330518319,1719557434568,-2752.76427051,0.00014,2]
[330518320,1719557434579,-265014.39583427,0.00014,2]
[330518321,1719557434592,-49469.8797289,0.00014,2]
[330518329,1719557438593,-2450.76963214,0.00014,2]
[330518330,1719557438605,-398.14907103,0.00014,2]
[330518331,1719557438618,-1033.85414703,0.00014,2]
[330518332,1719557438629,-4272.26535015,0.00014,2]
[330518333,1719557438813,-1235870.78671665,0.00014,2]
[330518536,1719557440648,-860.0,0.00014,2]
[330518539,1719557440657,-32416.14929742,0.00014,2]
[330518543,1719557440669,-748.45787279,0.00014,2]
[330518546,1719557440680,-2854.48132401,0.00014,2]
[330518549,1719557440692,-117182.03944402,0.00014,2]
[330518551,1719557440707,-1741.65315333,0.00014,2]
[330518553,1719557440719,-5060.62730203,0.00014,2]
[330518556,1719557440732,-4896.92,0.00014,2]
[330518558,1719557440746,-719.26763437,0.00014,2]
[330518560,1719557440758,-696.2,0.00014,2]
[330518572,1719557440871,-289855.13316222,0.00014,2]
[330518574,1719557440882,-1663.5002,0.00014,2]
[330518577,1719557440894,-1295.62567934,0.00014,2]
[330518578,1719557440905,-352.75909744,0.00014,2]
[330518580,1719557440916,-370.34915163,0.00014,2]
[330518582,1719557440927,-124309.29418572,0.00014,2]
[330518583,1719557440938,-9313.40183694,0.00014,2]
[330518584,1719557440949,-304.33735203,0.00014,2]
[330518585,1719557440959,-546.06179378,0.00014,2]
[330518586,1719557440970,-247010.77883169,0.00014,2]
[330518587,1719557440982,-6485.92547838,0.00014,2]
[330518891,1719557444233,-601.61,0.0001399,2]
[330518892,1719557444242,-601.61,0.0001399,2]
[330518894,1719557444251,-601.61,0.0001399,2]
[330518896,1719557444260,-601.61,0.0001399,2]
[330518898,1719557444269,-601.61,0.0001399,2]
[330518900,1719557444278,-27834.45,0.00014,2]
[330518902,1719557444289,-10240.00562987,0.00014,2]
[330518904,1719557444298,-498012.10001706,0.00014,2]
[330518906,1719557444308,-1160.96531032,0.00014,2]
[330518908,1719557444320,-6268.18940761,0.00014,2]
[330518909,1719557444330,-657.03544883,0.00014,2]
[330518910,1719557444341,-730.07140233,0.00014,2]
[330518911,1719557444352,-652.62529538,0.00014,2]
[330518912,1719557444363,-4675.74706937,0.00014,2]
[330518913,1719557444374,-880.36175698,0.00014,2]
[330518914,1719557444386,-593.46637594,0.00014,2]
[330518915,1719557444398,-500.0,0.00014,2]
[330518916,1719557444461,-1310.4004753,0.00014,2]
[330518917,1719557444473,-1881.315,0.00014,2]
[330518918,1719557444483,-977.00774141,0.00014,2]
[330518919,1719557444494,-2529.78232275,0.00014,2]
[330518920,1719557444506,-778.43006611,0.00014,2]
[330518921,1719557444517,-420.27069109,0.00014,2]
[330518922,1719557444528,-524.50138026,0.00014,2]
[330518969,1719557446806,-66815.9753352,0.00014,2]
[330518970,1719557446821,-2043.4,0.00014,2]
[330518971,1719557446832,-500.0,0.00014,2]
[330518972,1719557446991,-486466.95467952,0.00014,2]
[330518973,1719557447002,-257735.28,0.00014,2]
[330518974,1719557447019,-171706.293,0.00014,2]
[330518975,1719557447032,-173400.5812,0.00014,2]
[330518976,1719557447044,-239788.83915799,0.00014,2]
[330518977,1719557447057,-79509.6545,0.00014,2]
[330518978,1719557447069,-65734.3395,0.00014,2]
[330518979,1719557447082,-1160.28479229,0.00014,2]
[330518980,1719557447094,-784.34273564,0.00014,2]
[330518990,1719557447205,-500.49998659,0.00014,2]
[330519036,1719557733911,174.17531264,0.00011199,2]
[330519039,1719557882422,15917.30601585,0.00025,60]
[330519040,1719558380522,23.21108327,0.00011199,2]
[330519041,1719558380544,131.78891673,0.00011199,2]
[330519054,1719558452672,9575.76185935,0.00011199,2]
[330519072,1719558632686,-605.88,0.00011345,2]
[330519073,1719558632696,-163.40720528,0.00012939,2]
[330519074,1719558632705,-300.0,0.00013161,2]
[330519075,1719558632715,-1261.65482791,0.00013162,2]
[330519076,1719558632729,-12802.57347209,0.00013162,2]
[330519077,1719558632740,-169.03,0.00013204,2]
[330519078,1719558632750,-600.0,0.0001321,2]
[330519079,1719558632759,-250.0,0.00013215,2]
[330519080,1719558632768,-250.0,0.00013262,2]
[330519082,1719558632777,-212.31,0.00013292,2]
[330519084,1719558632786,-400.0,0.0001337,2]
[330519086,1719558632795,-155.0,0.00013472,2]
[330519088,1719558632804,-150.99,0.00013543,2]
[330519089,1719558632814,-299.99,0.00013543,2]
[330519090,1719558632823,-605.88,0.00013609,2]
[330519091,1719558632833,-499.99,0.00013699,2]
[330519092,1719558632842,-241.23,0.00013699,2]
[330519093,1719558632851,-220.72,0.00013699,2]
[330519094,1719558632860,-2651.54243,0.0001386,2]
[330519095,1719558632870,-500.0,0.00013887,2]
[330519096,1719558632880,-180.81637031,0.00013888,2]
[330519097,1719558632892,-319.18362969,0.00013888,2]
[330519098,1719558632902,-200.0,0.00013888,2]
[330519099,1719558632913,-497.8815,0.000139,2]
[330519100,1719558632922,-765.5166,0.000139,2]
[330519101,1719558632933,-1000.0,0.000139,2]
[330519102,1719558632942,-6793.18012966,0.000139,2]
[330519103,1719558632955,-892.30034146,0.000139,2]
[330519104,1719558633160,-4458.23572949,0.000139,2]
[330519105,1719558633172,-1762.54870277,0.000139,2]
[330519106,1719558633183,-7500.0,0.000139,2]
[330519107,1719558633193,-175.84386721,0.000139,2]
[330519108,1719558633203,-150.0,0.00013918,2]
[330519109,1719558633214,-150.0,0.00013918,2]
[330519110,1719558633223,-150.0,0.00013918,2]
[330519111,1719558633232,-528.03,0.00013945,2]
[330519112,1719558633242,-150.0,0.00013945,2]
[330519113,1719558633253,-150.0,0.00013945,2]
[330519114,1719558633261,-423.99,0.00013945,2]
[330519115,1719558633271,-150.0,0.00013945,2]
[330519116,1719558633281,-164.73,0.00013945,2]
[330519117,1719558633291,-151.74,0.00013945,2]
[330519118,1719558633300,-150.0,0.00013945,2]
[330519119,1719558633309,-528.03,0.00013945,2]
[330519120,1719558633319,-150.0,0.00013945,2]
[330519121,1719558633328,-150.0,0.00013945,2]
[330519122,1719558633338,-164.73,0.00013945,2]
[330519123,1719558633347,-150.0,0.00013945,2]
[330519124,1719558633356,-423.99,0.00013945,2]
[330519125,1719558633365,-423.99,0.00013945,2]
[330519126,1719558633374,-528.03,0.00013945,2]
[330519127,1719558633384,-150.0,0.00013945,2]
[330519128,1719558633393,-150.0,0.00013945,2]
[330519129,1719558633403,-164.73,0.00013945,2]
[330519130,1719558633413,-164.73,0.00013945,2]
[330519131,1719558633423,-150.0,0.00013945,2]
[330519132,1719558633431,-150.0,0.00013945,2]
[330519133,1719558633441,-164.73,0.00013945,2]
[330519134,1719558633450,-150.0,0.00013945,2]
[330519135,1719558633460,-164.73,0.00013945,2]
[330519136,1719558633469,-164.73,0.00013945,2]
[330519137,1719558633478,-164.73,0.00013945,2]
[330519138,1719558633488,-1487.74271588,0.00013989,3]
[330519139,1719558633498,-14011.67032427,0.00013989,2]
[330519140,1719558633507,-32604.458745,0.0001399,2]
[330519141,1719558633517,-1876.1273335,0.0001399,2]
[330519142,1719558633526,-4446.0696414,0.0001399,2]
[330519143,1719558633535,-2256.0,0.0001399,2]
[330519144,1719558633544,-700.0,0.00014,2]
[330519145,1719558633554,-40723.04647781,0.00014,2]
[330519146,1719558633568,-494.53,0.00014,2]
[330519147,1719558633580,-1426.0,0.00014,2]
[330519148,1719558633591,-854.82014811,0.00014,2]
[330519155,1719558638039,-200.0,0.00013313,2]
[330519156,1719558638049,-108.095,0.00013725,2]
[330519157,1719558638061,-264.40213113,0.00013725,2]
[330519158,1719558638075,-239.63902096,0.00014,2]
[330519159,1719558638087,-417.24561627,0.00014,2]
[330519160,1719558638100,-1270.89616337,0.00014,2]
[330519168,1719558640033,-123023.59376802,0.00014,2]
[330519373,1719558644116,-493.52,0.00014,2]
[330519374,1719558644128,-498012.10001706,0.00014,2]
[330519375,1719558644146,-228259.03924932,0.00014,2]
[330519376,1719558644158,-770.61502385,0.00014,2]
[330519377,1719558646275,-317.5833966,0.00012874,2]
[330519378,1719558646287,-290.54,0.00012874,2]
[330519379,1719558646299,-415.0,0.00012874,2]
[330519381,1719558646555,-300.29129523,0.00012874,2]
[330519422,1719558649479,-3974.65537017,0.00012874,2]
[330519423,1719558649489,-315.21602779,0.000139,2]
[330519424,1719558649498,-836239.04045162,0.00014,2]
[330519425,1719558649508,-900.0,0.00014,2]
[330519426,1719558649517,-2000.0,0.00014,2]
[330519427,1719558649526,-309.38,0.00014,2]
[330519428,1719558649536,-302.56,0.00014,2]
[330519429,1719558649546,-309.95,0.00014,2]
[330519430,1719558649555,-150.0,0.00014,2]
[330519431,1719558649564,-528.03,0.00014,2]
[330519432,1719558649574,-150.0,0.00014,2]
[330519433,1719558649583,-150.0,0.00014,2]
[330519434,1719558649593,-1100.53939417,0.00014,2]
[330519435,1719558649605,-214.03,0.00014251,2]
[330519436,1719558649614,-241.23,0.00014384,2]
[330519437,1719558649623,-420.0,0.0001443,2]
[330519438,1719558649633,-800.0,0.00014496,2]
[330519439,1719558649642,-500.0,0.00014496,2]
[330519440,1719558649651,-1000.0,0.00014496,2]
[330519441,1719558649660,-500.0,0.00014496,2]
[330519442,1719558649670,-500.0,0.00014496,2]
[330519443,1719558649679,-7440.55474261,0.000145,2]
[330519444,1719558649689,-13906.26490331,0.00014597,2]
[330519445,1719558649698,-168.6,0.00014721,2]
[330519446,1719558649707,-304.97,0.00014767,2]
[330519447,1719558649716,-309.75,0.00014767,2]
[330519448,1719558649726,-925.11,0.00014767,2]
[330519449,1719558649735,-305.04,0.00014767,2]
[330519450,1719558649744,-150.0,0.00014767,2]
[330519451,1719558649753,-150.0,0.00014767,2]
[330519452,1719558649763,-150.0,0.00014767,2]
[330519453,1719558649773,-150.84,0.00014767,2]
[330519454,1719558649782,-600.0,0.00014861,2]
[330519455,1719558649792,-212.31,0.00014954,2]
[330519456,1719558649802,-5000.0,0.00015,2]
[330519457,1719558649811,-3966.84701844,0.00015,2]
[330519458,1719558649821,-622.59689453,0.00015,2]
[330519459,1719558649830,-490.0,0.00015,2]
[330519460,1719558649840,-31252.18912752,0.00015,2]
[330519461,1719558649851,-400.0,0.00015041,2]
[330519462,1719558649860,-241.23,0.00015068,2]
[330519463,1719558649869,-8098.0,0.00015077,2]
[330519464,1719558649878,-13906.26490331,0.00015294,2]
[330519465,1719558649887,-800.0,0.00015318,2]
[330519466,1719558649896,-1000.0,0.00015318,2]
[330519467,1719558649906,-635.34536723,0.00015687,2]
[330519468,1719558649915,-241.23,0.00015753,2]
[330519469,1719558649924,-587.0,0.00015823,2]